[Event "Warsaw Chess Open-B 2022"]
[Site "Warsaw"]
[Date "2022.07.19"]
[Round "2.6"]
[White "Gaszka, Zuzanna"]
[Black "Radecki, Wojciech"]
[Result "0-1"]
[ECO "C50"]
[WhiteElo "1553"]
[BlackElo "1907"]
[Annotator "TA"]
[PlyCount "140"]
[EventDate "2022.07.18"]
[EventType "swiss"]
[EventCountry "POL"]
[SourceTitle "playchess.com"]
[Source "ChessBase"]
[SourceQuality "1"]
[TimeControl "40/5400+30:1800+30"]

{[%evp 9,140,39,32,31,59,43,53,70,50,37,59,22,33,30,37,17,10,20,64,8,21,-57,-60,-55,-66,-96,-87,-69,-16,-8,0,-7,97,76,82,-7,0,-65,-58,-70,-65,-96,-90,-100,-114,-112,-110,-167,-121,-181,-139,-155,-137,-183,-137,-131,-126,-122,-123,-244,-255,-240,-211,-259,-271,-345,-352,-341,-310,-281,0,-342,-337,-367,-333,-319,-22,-306,-225,-222,-179,-330,-216,-216,-216,-177,-159,-272,-266,-452,-325,-1008,-1355,-1113,-789,-300,-275,-867,-852,-828,-816,-1312,-1085,-1971,-1915,-1642,-1507,-7232,-5543,-5454,-5706,-29954,-29958,-5443,-4960,-29972,-29972,-29967,-29960,-29955,-29954,-5157,-5081,-29977,-29977,-29976,-29978,-29985,-29985,-29986,-29987,-29987,-29988]} 1. e4 {[%emt 0:00:02]} e5 {[%emt 0:00:11]} 2. Nf3 {[%emt 0:00:04]} Nc6 {[%emt 0:00:10]} 3. Bc4 {[%emt 0:00:05]} d6 {[%emt 0:00:31]} 4. a4 {[%emt 0:01:05]} Bg4 {[%emt 0:01:49] [#]} 5. c3 $146 {[%emt 0:04:34]} ({Predecessor:} 5. d3 Nf6 6. c3 Na5 7. Ba2 c5 8. h3 Be6 9. Bg5 Be7 10. Nbd2 Qd7 11. Nf1 h6 12. Bxf6 Bxf6 {1-0 (42) Nagyova,D (1712)-Hammel,J (1650) Ceske Budejovice 2022}) 5... Qf6 {[%emt 0:06:18]} 6. Be2 {[%emt 0:02:15] C50: Hungarian Defence and Giuoco Pianissimo.} h6 {[%emt 0:03:13]} 7. d3 {[%emt 0:02:59]} Nge7 {[%emt 0:01:19][%cal Bg8e7,Be7g6,Bg6f4,Bf4e2][%mdl 32]} 8. O-O {[%emt 0:05:12] White is slightly better.} g5 {[%emt 0:02:29]} 9. b4 {[%emt 0:10:10][%cal Bb2b4,Bb4b5][%mdl 32]} Ng6 {[%emt 0:03:43]} 10. b5 {[%emt 0:02:07]} Nce7 {[%emt 0:02:14]} 11. Be3 {[%emt 0:12:13]} Nf4 {[%emt 0:00:35]} 12. Nbd2 {[%emt 0:00:55]} (12. Bxf4 $5 gxf4 13. Kh1 $11) 12... Neg6 {[%emt 0:01:01]} 13. d4 {[%emt 0:03:39]} Rg8 {[%emt 0:11:32]} 14. c4 {[%emt 0:05:35]} (14. a5 $14) 14... Be7 {[%emt 0:08:09]} 15. Re1 {[%emt 0:02:42]} (15. d5 $1 $11) 15... Bh5 $15 {[%emt 0:09:49]} 16. Kh1 {[%emt 0:08:26]} Nxe2 {[%emt 0:04:01]} 17. dxe5 {[%emt 0:06:26] [#]} dxe5 {[%emt 0:02:06]} 18. Qxe2 {[%emt 0:04:43]} Nh4 {[%emt 0:06:33]} ({Black should play} 18... Bb4 $15 19. Reb1 Bxd2 20. Bxd2 Bxf3 21. Qxf3 Qxf3 22. gxf3 Nh4) 19. c5 $11 {[%emt 0:01:43]} O-O-O {[%emt 0:00:27][%cal Od8d2] Strongly threatening ...Rxd2!} 20. Rec1 {[%emt 0:05:42] [#] Black must now prevent b6.} c6 {[%emt 0:07:18]} (20... Rxd2 $1 $11 21. Bxd2 Nxf3) 21. bxc6 {[%emt 0:01:44]} Qxc6 {[%emt 0:00:51]} 22. Qb5 {[%emt 0:03:11]} ({White must play} 22. a5 $1 $16 {[%cal Ra5a6] Hoping for a6.} Nxf3 23. Nxf3) 22... Nxf3 {[%emt 0:01:01]} 23. Qxc6+ {[%emt 0:00:21]} (23. Nxf3 $11 Bxf3 24. gxf3) 23... bxc6 $15 {[%emt 0:00:09]} 24. Nxf3 {[%emt 0:00:42]} f6 {[%emt 0:01:47]} 25. Rab1 {[%emt 0:01:47]} Kc7 {[%emt 0:00:27]} 26. Bd2 {[%emt 0:00:55]} Rb8 {[%emt 0:00:35]} 27. Ba5+ {[%emt 0:01:41]} Kd7 {[%emt 0:00:48]} 28. Bb4 {[%emt 0:02:30]} (28. Kg1 $17) 28... Rb7 {[%emt 0:03:04]} (28... Ke6 $19 29. Nd2 Rgd8) 29. Ba3 {[%emt 0:01:32]} (29. Ba5 $17 Rxb1 30. Rxb1) 29... Rgb8 {[%emt 0:00:24][%cal Bg8b8,Bb8b7,Bb7d7,Bd7d1][%mdl 32]} 30. Nd2 {[%emt 0:00:42]} Kc8 {[%emt 0:02:09]} (30... Rxb1 31. Rxb1 Rxb1+ 32. Nxb1 $17) 31. h3 {[%emt 0:01:42]} (31. Rxb7 $17 {was necessary.} Rxb7 32. Kg1) 31... Bf7 {[%emt 0:01:04]} (31... Rxb1 $19 32. Rxb1 Rxb1+ 33. Nxb1 Bd8) 32. Rxb7 $17 {[%emt 0:01:50]} Rxb7 {[%emt 0:00:02]} 33. Rc3 {[%emt 0:00:33]} Rd7 {[%emt 0:00:55]} 34. Nf3 {[%emt 0:02:05]} (34. Nc4 $17) 34... Rd1+ {[%emt 0:01:50]} ({And not} 34... Bg6 35. Re3) 35. Kh2 {[%emt 0:00:07]} Bd8 {[%emt 0:00:22]} 36. Re3 {[%emt 0:02:49]} Ba5 {[%emt 0:00:33]} 37. g4 {[%emt 0:00:48]} Bc4 {[%emt 0:00:41]} 38. h4 {[%emt 0:01:02]} Rd3 {[%emt 0:00:53]} 39. Bc1 {[%emt 0:01:31]} Rd1 {[%emt 0:01:53]} 40. Ba3 {[%emt 0:00:16]} Kd7 {[%emt 0:03:11]} 41. hxg5 {[%emt 0:30:54]} hxg5 {[%emt 0:30:04]} 42. Bb2 {[%emt 0:00:12][%cal Ob2e5]} Rd3 $2 {[%emt 0:02:12]} (42... Ke6 $19 {...Bd3 is the strong threat.} 43. Kg3 Rd3) 43. Bc1 $2 {[%emt 0:00:48][%mdl 8192] This move loses the game for White.} (43. Bxe5 $1 $11 {and White is okay.} Rxe3 44. fxe3) 43... Rxe3 {[%emt 0:00:14]} 44. Bxe3 $19 {[%emt 0:00:16][%mdl 4096] Endgame KBB-KBN} Bd3 {[%emt 0:00:05] This bishop pair is nice.} 45. Nd2 $2 {[%emt 0:00:23]} (45. Bxg5 {was worth a try.} Bxe4 46. Bd2) 45... Bxd2 {[%emt 0:00:05]} 46. Bxd2 {[%emt 0:00:04]} Bxe4 {[%emt 0:00:04] KB-KB} 47. Kg3 {[%emt 0:00:25]} Ke6 {[%emt 0:00:18]} 48. Ba5 {[%emt 0:01:38] [#]} (48. f3 $17 Bc2 49. Kf2) 48... Bc2 $1 {[%emt 0:00:27]} 49. Bd8 $2 {[%emt 0:00:20]} (49. Kf3) 49... Bxa4 {[%emt 0:00:07] aiming for ...Bd1.} 50. Kf3 $2 {[%emt 0:00:28]} (50. f3 Bc2 51. Kf2) 50... Bd1+ {[%emt 0:00:14]} 51. Kg3 {[%emt 0:00:04]} Kf7 {[%emt 0:00:07]} 52. Bb6 {[%emt 0:00:24] [#]} a6 $1 {[%emt 0:00:20]} (52... axb6 $2 53. cxb6 Kg7 54. b7 $18) 53. Bd8 $2 {[%emt 0:00:10]} (53. f3) 53... Kg6 {[%emt 0:00:05]} 54. Bc7 {[%emt 0:00:47]} f5 {[%emt 0:01:29]} 55. gxf5+ {[%emt 0:01:02]} Kxf5 {[%emt 0:00:03]} 56. Kg2 {[%emt 0:00:18]} Be2 {[%emt 0:00:42]} 57. Kg3 {[%emt 0:00:13]} g4 {[%emt 0:00:44]} 58. Kg2 {[%emt 0:00:18]} Ke4 {[%emt 0:00:17]} 59. Bb6 {[%emt 0:00:50]} Kd5 {[%emt 0:00:10]} 60. Kg3 {[%emt 0:00:18]} Bf3 {[%emt 0:01:29]} 61. Bc7 {[%emt 0:01:10]} e4 {[%emt 0:00:45] ( -> ...Kc4)} 62. Bb6 {[%emt 0:00:16]} Kc4 {[%emt 0:00:17]} 63. Kf4 {[%emt 0:00:34]} Kb5 {[%emt 0:00:18]} 64. Ke3 {[%emt 0:00:16]} a5 {[%emt 0:00:11][%cal Ba6a5,Ba5a4,Ba4a3][%mdl 32]} 65. Bc7 {[%emt 0:00:38]} a4 {[%emt 0:00:22]} 66. Kd4 {[%emt 0:00:47]} Kb4 {[%emt 0:00:15] Black mates.} 67. Bf4 {[%emt 0:00:19]} a3 {[%emt 0:00:34]} 68. Bd2+ {[%emt 0:00:11]} Kb3 {[%emt 0:00:19]} 69. Bc3 {[%emt 0:00:30]} e3 {[%emt 0:01:20]} 70. fxe3 {[%emt 0:00:19]} g3 {[%emt 0:00:09] Weighted Error Value: White=0.66/Black=0.34} 0-1

[Event "Warsaw Chess Open-B 2022"]
[Site "Warsaw"]
[Date "2022.07.19"]
[Round "2.7"]
[White "Posuniak, Weronika"]
[Black "Masalski, Pawel"]
[Result "1-0"]
[ECO "A33"]
[WhiteElo "1895"]
[BlackElo "1550"]
[Annotator "NA RC COMBH"]
[PlyCount "104"]
[EventDate "2022.07.18"]
[EventType "swiss"]
[EventCountry "POL"]
[SourceTitle "playchess.com"]
[Source "ChessBase"]
[SourceQuality "1"]
[TimeControl "40/5400+30:1800+30"]

1. Nf3 {[%emt 0:28:56]} c5 {[%emt 0:00:10]} 2. c4 {[%emt 0:00:18]} Nc6 {[%emt 0:00:36]} 3. Nc3 {[%emt 0:00:08]} Nf6 {[%emt 0:00:08]} 4. d4 {[%emt 0:00:33]} cxd4 {[%emt 0:00:07]} 5. Nxd4 {[%emt 0:00:09]} e6 {[%emt 0:00:15]} 6. g3 {[%emt 0:00:52]} Qb6 {[%emt 0:06:48]} 7. Ndb5 {[%emt 0:04:21]} Bc5 {[%emt 0:14:22]} 8. Nd6+ {[%emt 0:04:15]} Ke7 {[%emt 0:14:34]} 9. Nde4 {[%emt 0:04:37]} Nxe4 {[%emt 0:02:48]} 10. Nxe4 {[%emt 0:00:24]} Bb4+ {[%emt 0:02:25]} 11. Bd2 {[%emt 0:04:10]} d5 {[%emt 0:03:15]} 12. cxd5 {[%emt 0:05:42]} exd5 {[%emt 0:00:14]} 13. Nc3 {[%emt 0:00:20]} Rd8 {[%emt 0:01:55]} 14. Bg2 {[%emt 0:01:29]} Be6 {[%emt 0:01:00]} 15. O-O {[%emt 0:00:38]} Kf8 {[%emt 0:00:48]} 16. Qc2 {[%emt 0:04:32]} Kg8 {[%emt 0:02:09]} 17. a3 {[%emt 0:02:19]} Nd4 {[%emt 0:09:02]} 18. Qd1 {[%emt 0:02:23]} Bxc3 {[%emt 0:03:06]} 19. bxc3 {[%emt 0:00:44]} Nb3 {[%emt 0:02:38]} 20. Rb1 {[%emt 0:00:56]} d4 {[%emt 0:00:05]} 21. Qc2 {[%emt 0:05:43]} Qb5 {[%emt 0:04:09]} 22. Rfe1 {[%emt 0:04:36]} Rac8 {[%emt 0:00:35]} 23. Qb2 {[%emt 0:01:09]} Qa4 {[%emt 0:03:05]} 24. cxd4 {[%emt 0:03:10]} Nxd2 {[%emt 0:00:19]} 25. Qxd2 {[%emt 0:00:23]} Rxd4 {[%emt 0:00:22]} 26. Qe3 {[%emt 0:06:19]} b6 {[%emt 0:00:22]} 27. h4 {[%emt 0:00:27]} Rdc4 {[%emt 0:01:04]} 28. Rbc1 {[%emt 0:01:45]} Qa5 {[%emt 0:00:39]} 29. Red1 {[%emt 0:01:06]} b5 {[%emt 0:02:01]} 30. Bb7 {[%emt 0:00:56]} Rxc1 {[%emt 0:04:13]} 31. Rxc1 {[%emt 0:00:10]} Rxc1+ {[%emt 0:00:13]} 32. Qxc1 {[%emt 0:00:05]} Qb6 {[%emt 0:00:36]} 33. Bd5 {[%emt 0:01:30]} g6 {[%emt 0:00:47]} 34. Bxe6 {[%emt 0:00:33]} Qxe6 {[%emt 0:00:11]} 35. Qc5 {[%emt 0:00:59]} a6 {[%emt 0:00:45]} 36. e3 {[%emt 0:00:43]} Qc4 {[%emt 0:00:33]} 37. Qe7 {[%emt 0:00:29]} Qc1+ {[%emt 0:01:21]} 38. Kg2 {[%emt 0:00:47]} Qc3 {[%emt 0:01:56]} 39. h5 {[%emt 0:02:09]} Qc6+ {[%emt 0:04:36]} 40. e4 {[%emt 0:00:18]} Qe6 {[%emt 0:02:42]} 41. Qd8+ {[%emt 0:30:43]} Kg7 {[%emt 0:30:04]} 42. Qd4+ {[%emt 0:00:35]} Kh6 {[%emt 0:00:37]} 43. hxg6 {[%emt 0:00:29]} Kxg6 {[%emt 0:00:51]} 44. f4 {[%emt 0:01:07]} f5 {[%emt 0:03:05]} 45. e5 {[%emt 0:03:10]} Qc6+ {[%emt 0:03:58]} 46. Kf2 {[%emt 0:01:52]} a5 47. Qd8 Kf7 {[%emt 0:05:55]} 48. Qxa5 {[%emt 0:00:55]} Qc2+ {[%emt 0:00:54]} 49. Ke3 {[%emt 0:02:42]} Qe4+ {[%emt 0:01:25]} 50. Kd2 {[%emt 0:00:28]} Qd4+ 51. Kc2 {[%emt 0:00:41]} Qf2+ {[%emt 0:01:05]} 52. Qd2 {[%emt 0:01:06]} Kg8 {[%emt 0:00:26]} 1-0

[Event "Warsaw Chess Open-B 2022"]
[Site "Warsaw"]
[Date "2022.07.19"]
[Round "2.8"]
[White "Levytskyy, Lybomyr"]
[Black "Kaminski, Jan"]
[Result "0-1"]
[ECO "B99"]
[WhiteElo "1529"]
[BlackElo "1870"]
[Annotator "NA RC COMBH"]
[PlyCount "72"]
[EventDate "2022.07.18"]
[EventType "swiss"]
[EventCountry "POL"]
[SourceTitle "playchess.com"]
[Source "ChessBase"]
[SourceQuality "1"]
[TimeControl "40/5400+30:1800+30"]

1. e4 {[%emt 0:00:03]} c5 {[%emt 0:00:03]} 2. Nf3 {[%emt 0:00:05]} d6 {[%emt 0:00:05]} 3. d4 {[%emt 0:00:05]} cxd4 {[%emt 0:00:06]} 4. Nxd4 {[%emt 0:00:03]} Nf6 {[%emt 0:00:04]} 5. Nc3 {[%emt 0:00:08]} a6 {[%emt 0:00:04]} 6. Bg5 {[%emt 0:00:26]} e6 {[%emt 0:00:09]} 7. f4 {[%emt 0:00:08]} Be7 {[%emt 0:00:06]} 8. Qf3 {[%emt 0:00:04]} Qc7 {[%emt 0:00:13]} 9. O-O-O {[%emt 0:00:14]} Nbd7 {[%emt 0:00:04]} 10. g4 {[%emt 0:00:12]} h6 {[%emt 0:00:20]} 11. Bxf6 {[%emt 0:01:51]} Bxf6 {[%emt 0:00:06]} 12. h4 {[%emt 0:02:45]} Nb6 {[%emt 0:00:04]} 13. g5 {[%emt 0:04:16]} Bxd4 {[%emt 0:02:30]} 14. Rxd4 {[%emt 0:00:22]} Qc5 {[%emt 0:00:02]} 15. Qd1 {[%emt 0:28:15]} hxg5 {[%emt 0:00:41]} 16. Rxd6 {[%emt 0:05:15]} Nd7 {[%emt 0:29:05]} 17. Rh3 {[%emt 0:21:59]} Rxh4 {[%emt 0:03:20]} 18. Rxh4 {[%emt 0:07:52]} gxh4 {[%emt 0:00:18]} 19. f5 {[%emt 0:00:39]} Ke7 {[%emt 0:07:00]} 20. Rd4 {[%emt 0:06:37]} Nb6 {[%emt 0:05:02]} 21. Bh3 {[%emt 0:03:57]} Bd7 {[%emt 0:02:52]} 22. fxe6 {[%emt 0:02:32]} fxe6 {[%emt 0:03:29]} 23. Qg1 {[%emt 0:04:28]} Rg8 {[%emt 0:12:01]} 24. Nd5+ {[%emt 0:09:22]} exd5 {[%emt 0:08:30]} 25. Bxd7 {[%emt 0:00:01]} Nxd7 {[%emt 0:03:31]} 26. Qg5+ {[%emt 0:00:01]} Nf6 {[%emt 0:02:48]} 27. Rxd5 {[%emt 0:00:52]} Qc4 {[%emt 0:04:08]} 28. b3 {[%emt 0:01:09]} Qc6 {[%emt 0:05:04]} 29. Rc5 {[%emt 0:00:30]} Qd6 {[%emt 0:01:20]} 30. b4 {[%emt 0:00:48]} Qg3 {[%emt 0:02:03]} 31. Qf5 {[%emt 0:00:26]} Rd8 {[%emt 0:02:47]} 32. Re5+ {[%emt 0:00:31]} Kf8 {[%emt 0:00:50]} 33. Qe6 {[%emt 0:00:20]} Qe1+ {[%emt 0:00:16]} 34. Kb2 {[%emt 0:00:01]} Qxb4+ {[%emt 0:00:09]} 35. Kc1 {[%emt 0:00:21]} Qa3+ {[%emt 0:00:13]} 36. Kb1 {[%emt 0:00:01]} Rd1# {[%emt 0:00:07]} 0-1

[Event "Warsaw Chess Open-B 2022"]
[Site "Warsaw"]
[Date "2022.07.20"]
[Round "3.1"]
[White "Kaczmarska, Joanna"]
[Black "Pawicka, Magdalena"]
[Result "0-1"]
[ECO "E32"]
[WhiteElo "1965"]
[BlackElo "1781"]
[Annotator "TA"]
[PlyCount "86"]
[EventDate "2022.07.18"]
[EventType "swiss"]
[EventCountry "POL"]
[SourceTitle "playchess.com"]
[Source "ChessBase"]
[SourceQuality "1"]
[TimeControl "40/5400+30:1800+30"]

{[%evp 9,86,10,35,-34,-13,-16,-4,-46,-35,-45,-22,-114,-77,-72,-41,-149,-115,-125,-63,-160,-163,-160,-163,-165,-158,-164,-173,-204,-194,-332,-204,-358,-361,-381,-371,-545,-545,-560,-552,-587,-592,-609,-593,-626,-559,-556,-550,-697,-687,-677,-659,-763,-750,-761,-753,-753,-739,-928,-896,-1335,-1344,-1386,-1451,-2055,-1701,-5402,-5310,-2884,-2921,-5497,-5489,-29986,-29987,-29987,-29983,-29992,-29993,-29997,-29998]} 1. d4 {[%emt 0:00:02]} Nf6 {[%emt 0:00:18]} 2. c4 {[%emt 0:00:14]} e6 {[%emt 0:00:06]} 3. Nc3 {[%emt 0:00:59]} Bb4 {[%emt 0:00:21]} 4. Qc2 {[%emt 0:00:52]} O-O {[%emt 0:00:31]} 5. Bg5 {[%emt 0:01:00]} c5 {[%emt 0:01:20]} 6. d5 {[%emt 0:06:19] E32: Nimzo-Indian: Classical (4 Qc2): 4...0-0.} (6. dxc5 $14 h6 7. Bf4) 6... exd5 {[%emt 0:06:13]} 7. cxd5 {[%emt 0:00:12]} h6 {[%emt 0:02:45]} 8. Bxf6 {[%emt 0:00:25] The position is equal.} Qxf6 {[%emt 0:00:15]} ({But not} 8... gxf6 9. e3 $16) 9. e4 {[%emt 0:12:54]} d6 {[%emt 0:02:15] [#]} 10. g3 $146 {[%emt 0:09:03]} (10. Nf3 $11) ({Predecessor:} 10. Nge2 Nd7 11. Ng3 Ne5 12. Be2 Ng4 13. O-O Qh4 14. h3 Ne3 15. fxe3 Qxg3 16. Rf3 {0-1 (41) Durac,E (1479)-Soltanici,R (2403) Bicaz 2020}) 10... Re8 {[%emt 0:07:20]} 11. Bg2 {[%emt 0:00:38]} Nd7 {[%emt 0:10:52]} 12. f4 {Inhibits Ne5.} ({Better is} 12. Nf3 $15) 12... Nb6 {[%emt 0:07:52] White must now prevent ...Nc4.} 13. Nge2 {[%emt 0:17:24] [#]} Nc4 {[%emt 0:16:59]} (13... Nxd5 $1 $17 {[%mdl 512] Strongly threatening ...Ne3.} 14. exd5 (14. Qd3 Nxc3) 14... Bf5) 14. Qc1 {[%emt 0:02:43] [#]} ({White should try} 14. Kf2 $15) 14... Bg4 $1 $17 {[%emt 0:01:28] 0x0.0013ba3e01abdp-1022s more active pieces.} 15. O-O {[%emt 0:02:04]} Bxe2 {[%emt 0:14:54]} 16. Nxe2 {[%emt 0:00:18]} Nd2 {[%emt 0:00:53]} ({Don't do} 16... Nxb2 17. e5 Nd3 18. exf6 $16) 17. Rd1 {[%emt 0:23:04]} Nxe4 {[%emt 0:00:25]} 18. a3 {[%emt 0:01:43]} Ba5 {[%emt 0:00:48]} 19. Qc4 {[%emt 0:03:01]} (19. Qc2 $142 Qg6 20. Rac1) 19... Qe7 {[%emt 0:01:47]} 20. Qb5 $2 {[%emt 0:04:00]} (20. Qxe4 Qxe4 21. Bxe4 Rxe4 22. Nc3 Bxc3 23. bxc3) 20... Bb6 $19 {[%emt 0:01:04]} 21. Qc4 {[%emt 0:01:29]} Nd2 {[%emt 0:00:54]} 22. Rxd2 {[%emt 0:04:12]} (22. Qc2 {was forced.} c4+ 23. Kh1) 22... Qe3+ {[%emt 0:00:06]} 23. Kf1 {[%emt 0:04:11]} Qxd2 {[%emt 0:00:15]} 24. Be4 {[%emt 0:00:14]} Qxb2 {[%emt 0:02:32]} 25. Rb1 {[%emt 0:02:59]} Qxa3 {[%emt 0:02:24]} 26. Nc3 {[%emt 0:00:38]} Rad8 {[%emt 0:05:55]} 27. Kf2 {[%emt 0:01:22]} Qa6 {[%emt 0:04:12]} 28. Nb5 {[%emt 0:00:23] [#]} Rxe4 $1 {[%emt 0:01:42]} 29. Qxe4 {[%emt 0:00:20]} Qa2+ {[%emt 0:01:07]} 30. Kg1 {[%emt 0:02:04]} c4+ {[%emt 0:00:59]} 31. Kh1 {[%emt 0:00:04]} Bc5 {[%emt 0:00:47]} 32. Nc3 {[%emt 0:00:55]} Qf2 {[%emt 0:00:29][%cal Ob7b5] ...b5! is the strong threat.} 33. Rd1 {[%emt 0:00:41]} a6 {[%emt 0:01:11]} 34. Na4 {[%emt 0:00:22]} b5 {[%emt 0:00:43]} 35. Nxc5 {[%emt 0:00:11]} Qxc5 {[%emt 0:00:21][%mdl 4096] Endgame KQR-KQR} 36. f5 {[%emt 0:00:46]} c3 {[%emt 0:01:01][%cal Bc4c3,Bc3c2][%mdl 32] And now ...b4 would win.} 37. f6 {[%emt 0:00:05]} c2 {[%emt 0:01:30]} 38. Rc1 {[%emt 0:00:04]} Rc8 {[%emt 0:00:17] aiming for ...b4.} 39. Qg4 {[%emt 0:00:42]} g6 {[%emt 0:01:26] ( -> ...b4)} 40. Qh3 {[%emt 0:01:22]} Qxd5+ {[%emt 0:00:58] Black mates.} 41. Kg1 {[%emt 0:30:06]} Qd1+ {[%emt 0:31:03]} 42. Kg2 {[%emt 0:00:21]} Qd2+ {[%emt 0:00:24]} 43. Kf3 {[%emt 0:00:32]} Rc3+ {[%emt 0:00:06] Weighted Error Value: White=0.61/Black=0.19 (very precise)} 0-1